[Event "Titled Tuesday Blitz January 11 2022"]
[White "Aradhya, Garg"]
[Black "Pakleza, Zbigniew"]
[WhiteFideId "25006746"]
[BlackFideId "1119290"]
[WhiteElo "2169"]
[BlackElo "2467"]
[Result "1-0"]
[Round "04"]
[TimeControl "180+1"]
[Date "2022.01.11"]
[WhiteClock "0:00:17"]
[BlackClock "0:00:05"]

1. d4 {[%clk 0:03:00]}  d6 {[%clk 0:02:58]} 2. Nf3 {[%clk 0:02:59]}  Bg4 {[%clk 0:02:58]} 3. c4 {[%clk 0:02:57]}  c6 {[%clk 0:02:57]} 4. Nc3 {[%clk 0:02:56]}  Nd7 {[%clk 0:02:56]} 5. e4 {[%clk 0:02:55]}  e5 {[%clk 0:02:56]} 6. Be2 {[%clk 0:02:54]}  Ngf6 {[%clk 0:02:56]} 7. O-O {[%clk 0:02:54]}  Be7 {[%clk 0:02:56]} 8. Be3 {[%clk 0:02:52]}  O-O {[%clk 0:02:56]} 9. Rc1 {[%clk 0:02:52]}  a6 {[%clk 0:02:54]} 10. d5 {[%clk 0:02:42]}  Bxf3 {[%clk 0:02:43]} 11. Bxf3 {[%clk 0:02:42]}  c5 {[%clk 0:02:44]} 12. a3 {[%clk 0:02:40]}  Rc8 {[%clk 0:02:35]} 13. Qd2 {[%clk 0:02:29]}  Ne8 {[%clk 0:02:22]} 14. g3 {[%clk 0:01:23]}  g6 {[%clk 0:02:17]} 15. Kg2 {[%clk 0:01:23]}  Ng7 {[%clk 0:02:13]} 16. Bd1 {[%clk 0:01:17]}  f5 {[%clk 0:02:08]} 17. f4 {[%clk 0:01:17]}  Bf6 {[%clk 0:01:58]} 18. exf5 {[%clk 0:00:43]}  Nxf5 {[%clk 0:01:45]} 19. Ne4 {[%clk 0:00:43]}  Qe7 {[%clk 0:01:45]} 20. Nxf6+ {[%clk 0:00:34]}  Nxf6 {[%clk 0:01:42]} 21. fxe5 {[%clk 0:00:34]}  Qxe5 {[%clk 0:01:43]} 22. Bf4 {[%clk 0:00:34]}  Qe7 {[%clk 0:01:24]} 23. Bc2 {[%clk 0:00:34]}  Nd4 {[%clk 0:00:39]} 24. Rce1 {[%clk 0:00:32]}  Qd7 {[%clk 0:00:38]} 25. Bh6 {[%clk 0:00:28]}  Rf7 {[%clk 0:00:38]} 26. Bxg6 {[%clk 0:00:24]}  hxg6 {[%clk 0:00:29]} 27. Qg5 {[%clk 0:00:25]}  Kh7 {[%clk 0:00:14]} 28. Rxf6 {[%clk 0:00:24]}  Rxf6 {[%clk 0:00:05]} 29. Qxf6 {[%clk 0:00:24]}  Nf5 {[%clk 0:00:06]} 30. Bf4 {[%clk 0:00:22]}  Re8 {[%clk 0:00:03]} 31. Re6 {[%clk 0:00:21]}  Rg8 {[%clk 0:00:02]} 32. g4 {[%clk 0:00:19]}  Qg7 {[%clk 0:00:03]} 33. gxf5 {[%clk 0:00:18]}  gxf5+ {[%clk 0:00:04]} 34. Qxg7+ {[%clk 0:00:18]}  Rxg7+ {[%clk 0:00:05]} 35. Kf3 {[%clk 0:00:17]} 1-0


[Site "https://www.chess.com"]

[Event "Titled Tuesday Blitz January 11 2022"]
[White "Bryakin, Mikhail"]
[Black "Arabidze, Meri"]
[WhiteFideId "4165314"]
[BlackFideId "13604040"]
[WhiteElo "2421"]
[BlackElo "2329"]
[Result "1/2-1/2"]
[Round "04"]
[TimeControl "180+1"]
[Date "2022.01.11"]
[WhiteClock "0:01:35"]
[BlackClock "0:00:08"]

1. e4 {[%clk 0:02:57]}  c5 {[%clk 0:02:59]} 2. c3 {[%clk 0:02:55]}  e6 {[%clk 0:02:59]} 3. d4 {[%clk 0:02:54]}  d5 {[%clk 0:02:59]} 4. exd5 {[%clk 0:02:54]}  exd5 {[%clk 0:03:00]} 5. Nf3 {[%clk 0:02:54]}  Nc6 {[%clk 0:03:00]} 6. Be2 {[%clk 0:02:54]}  Bd6 {[%clk 0:03:00]} 7. dxc5 {[%clk 0:02:53]}  Bxc5 {[%clk 0:03:01]} 8. O-O {[%clk 0:02:54]}  Nge7 {[%clk 0:03:01]} 9. Na3 {[%clk 0:02:54]}  Bxa3 {[%clk 0:02:55]} 10. bxa3 {[%clk 0:02:54]}  O-O {[%clk 0:02:56]} 11. c4 {[%clk 0:02:51]}  d4 {[%clk 0:02:44]} 12. Bb2 {[%clk 0:02:51]}  Nf5 {[%clk 0:02:44]} 13. Bd3 {[%clk 0:02:51]}  Re8 {[%clk 0:02:33]} 14. Bxf5 {[%clk 0:02:49]}  Bxf5 {[%clk 0:02:34]} 15. Nxd4 {[%clk 0:02:50]}  Nxd4 {[%clk 0:02:33]} 16. Qxd4 {[%clk 0:02:50]}  Qxd4 {[%clk 0:02:33]} 17. Bxd4 {[%clk 0:02:51]}  b6 {[%clk 0:02:23]} 18. Rfc1 {[%clk 0:02:49]}  Rec8 {[%clk 0:02:18]} 19. a4 {[%clk 0:02:47]}  Be6 {[%clk 0:02:00]} 20. c5 {[%clk 0:02:39]}  bxc5 {[%clk 0:01:59]} 21. Bxc5 {[%clk 0:02:40]}  a6 {[%clk 0:01:54]} 22. a5 {[%clk 0:02:39]}  Rc6 {[%clk 0:01:47]} 23. a3 {[%clk 0:02:31]}  Rac8 {[%clk 0:01:46]} 24. Be3 {[%clk 0:02:32]}  Rxc1+ {[%clk 0:01:43]} 25. Bxc1 {[%clk 0:02:33]}  Rc2 {[%clk 0:01:34]} 26. Bf4 {[%clk 0:02:29]}  h6 {[%clk 0:01:30]} 27. h3 {[%clk 0:02:29]}  Ra2 {[%clk 0:01:28]} 28. Rd1 {[%clk 0:02:29]}  Rxa3 {[%clk 0:01:25]} 29. Bc7 {[%clk 0:02:29]}  Bc4 {[%clk 0:01:14]} 30. Bb6 {[%clk 0:02:29]}  Bb5 {[%clk 0:01:12]} 31. Rd2 {[%clk 0:02:28]}  Ra1+ {[%clk 0:01:10]} 32. Kh2 {[%clk 0:02:29]}  Kh7 {[%clk 0:01:10]} 33. Rd6 {[%clk 0:02:29]}  Re1 {[%clk 0:01:00]} 34. Rd4 {[%clk 0:02:27]}  Re2 {[%clk 0:00:57]} 35. Rg4 {[%clk 0:02:26]}  Re6 {[%clk 0:00:52]} 36. Rd4 {[%clk 0:02:26]}  Re2 {[%clk 0:00:51]} 37. Rd1 {[%clk 0:02:25]}  Ra2 {[%clk 0:00:50]} 38. Rd8 {[%clk 0:02:26]}  Re2 {[%clk 0:00:49]} 39. Kg3 {[%clk 0:02:26]}  Ra2 {[%clk 0:00:48]} 40. Rd6 {[%clk 0:02:26]}  Re2 {[%clk 0:00:48]} 41. Rd4 {[%clk 0:02:26]}  Ra2 {[%clk 0:00:47]} 42. Rd1 {[%clk 0:02:26]}  Re2 {[%clk 0:00:47]} 43. Rc1 {[%clk 0:02:26]}  Ra2 {[%clk 0:00:47]} 44. Rg1 {[%clk 0:02:27]}  Ra3+ {[%clk 0:00:46]} 45. Kh2 {[%clk 0:02:26]}  Ra2 {[%clk 0:00:47]} 46. Rc1 {[%clk 0:02:26]}  Re2 {[%clk 0:00:46]} 47. Rc7 {[%clk 0:02:27]}  Kg6 {[%clk 0:00:44]} 48. Rc5 {[%clk 0:02:27]}  Ra2 {[%clk 0:00:43]} 49. Rc3 {[%clk 0:02:27]}  Kh7 {[%clk 0:00:42]} 50. Rf3 {[%clk 0:02:24]}  Kg8 {[%clk 0:00:41]} 51. Rf4 {[%clk 0:02:24]}  Re2 {[%clk 0:00:40]} 52. Kg3 {[%clk 0:02:24]}  Ra2 {[%clk 0:00:40]} 53. h4 {[%clk 0:02:23]}  Re2 {[%clk 0:00:37]} 54. Rf5 {[%clk 0:02:22]}  Ra2 {[%clk 0:00:36]} 55. Rc5 {[%clk 0:02:20]}  Ra3+ {[%clk 0:00:36]} 56. Kf4 {[%clk 0:02:18]}  Ra2 {[%clk 0:00:36]} 57. Rc8+ {[%clk 0:02:14]}  Kh7 {[%clk 0:00:36]} 58. Ke5 {[%clk 0:02:14]}  Kg6 {[%clk 0:00:34]} 59. g3 {[%clk 0:02:14]}  Re2+ {[%clk 0:00:33]} 60. Kd4 {[%clk 0:02:14]}  h5 {[%clk 0:00:32]} 61. Rc5 {[%clk 0:02:12]}  f6 {[%clk 0:00:31]} 62. Rc7 {[%clk 0:02:11]}  Rd2+ {[%clk 0:00:26]} 63. Kc3 {[%clk 0:02:10]}  Rd1 {[%clk 0:00:25]} 64. Re7 {[%clk 0:02:09]}  Rc1+ {[%clk 0:00:25]} 65. Kd4 {[%clk 0:02:09]}  Rd1+ {[%clk 0:00:25]} 66. Kc5 {[%clk 0:02:10]}  Rc1+ {[%clk 0:00:25]} 67. Kd6 {[%clk 0:02:10]}  Rc6+ {[%clk 0:00:21]} 68. Kd5 {[%clk 0:02:10]}  Rc2 {[%clk 0:00:22]} 69. Ra7 {[%clk 0:02:10]}  Rd2+ {[%clk 0:00:20]} 70. Ke6 {[%clk 0:02:04]}  Re2+ {[%clk 0:00:20]} 71. Kd6 {[%clk 0:02:04]}  Rd2+ {[%clk 0:00:17]} 72. Kc5 {[%clk 0:01:56]}  Rxf2 {[%clk 0:00:15]} 73. Bc7 {[%clk 0:01:56]}  Rc2+ {[%clk 0:00:15]} 74. Kb6 {[%clk 0:01:55]}  Rc6+ {[%clk 0:00:14]} 75. Kb7 {[%clk 0:01:56]}  Rc3 {[%clk 0:00:14]} 76. Bf4 {[%clk 0:01:54]}  Kf5 {[%clk 0:00:14]} 77. Kb6 {[%clk 0:01:52]}  Rc6+ {[%clk 0:00:13]} 78. Kb7 {[%clk 0:01:52]}  g5 {[%clk 0:00:13]} 79. hxg5 {[%clk 0:01:52]}  fxg5 {[%clk 0:00:14]} 80. Bc7 {[%clk 0:01:52]}  h4 {[%clk 0:00:13]} 81. gxh4 {[%clk 0:01:51]}  gxh4 {[%clk 0:00:14]} 82. Ra8 {[%clk 0:01:52]}  Kg4 {[%clk 0:00:14]} 83. Rg8+ {[%clk 0:01:52]}  Kh3 {[%clk 0:00:14]} 84. Rh8 {[%clk 0:01:52]}  Rc4 {[%clk 0:00:14]} 85. Kb6 {[%clk 0:01:51]}  Rg4 {[%clk 0:00:13]} 86. Rh6 {[%clk 0:01:50]}  Kg2 {[%clk 0:00:13]} 87. Rh8 {[%clk 0:01:44]}  h3 {[%clk 0:00:13]} 88. Bd6 {[%clk 0:01:45]}  Rg6 {[%clk 0:00:10]} 89. Kc5 {[%clk 0:01:45]}  Rg5+ {[%clk 0:00:09]} 90. Kd4 {[%clk 0:01:45]}  Rg4+ {[%clk 0:00:10]} 91. Ke3 {[%clk 0:01:45]}  Rg6 {[%clk 0:00:10]} 92. Bc7 {[%clk 0:01:45]}  Rg7 {[%clk 0:00:10]} 93. Be5 {[%clk 0:01:43]}  Rg5 {[%clk 0:00:10]} 94. Bf4 {[%clk 0:01:42]}  Rg6 {[%clk 0:00:09]} 95. Be5 {[%clk 0:01:39]}  Rg5 {[%clk 0:00:09]} 96. Kf4 {[%clk 0:01:38]}  Rg6 {[%clk 0:00:07]} 97. Ke4 {[%clk 0:01:36]}  Rg4+ {[%clk 0:00:07]} 98. Bf4 {[%clk 0:01:35]}  Rxf4+ {[%clk 0:00:07]} 99. Kxf4 {[%clk 0:01:34]}  h2 {[%clk 0:00:08]} 100. Rg8+ {[%clk 0:01:34]}  Kf2 {[%clk 0:00:08]} 101. Rh8 {[%clk 0:01:34]}  Kg2 {[%clk 0:00:08]} 102. Rg8+ {[%clk 0:01:35]}  Kf2 {[%clk 0:00:08]} 103. Rh8 {[%clk 0:01:35]}  Kg2 {[%clk 0:00:08]} 1/2-1/2


[Site "https://www.chess.com"]

[Event "Titled Tuesday Blitz January 11 2022"]
[White "Cunjalo, Faris"]
[Black "Panesar Vedant"]
[WhiteFideId "14410710"]
[BlackFideId "35033018"]
[WhiteElo "2263"]
[BlackElo "1971"]
[Result "1/2-1/2"]
[Round "04"]
[TimeControl "180+1"]
[Date "2022.01.11"]
[WhiteClock "0:00:39"]
[BlackClock "0:01:00"]

1. f4 {[%clk 0:03:00]}  d5 {[%clk 0:02:50]} 2. Nf3 {[%clk 0:03:01]}  g6 {[%clk 0:02:51]} 3. g3 {[%clk 0:03:01]}  Bg7 {[%clk 0:02:52]} 4. Bg2 {[%clk 0:03:02]}  c5 {[%clk 0:02:52]} 5. O-O {[%clk 0:03:02]}  Nf6 {[%clk 0:02:53]} 6. d3 {[%clk 0:03:03]}  O-O {[%clk 0:02:53]} 7. Qe1 {[%clk 0:03:04]}  Nc6 {[%clk 0:02:51]} 8. e4 {[%clk 0:03:04]}  dxe4 {[%clk 0:02:50]} 9. dxe4 {[%clk 0:03:05]}  e5 {[%clk 0:02:51]} 10. Nc3 {[%clk 0:02:58]}  Nd4 {[%clk 0:02:38]} 11. Qd2 {[%clk 0:02:49]}  exf4 {[%clk 0:02:33]} 12. gxf4 {[%clk 0:02:50]}  Nxf3+ {[%clk 0:02:23]} 13. Bxf3 {[%clk 0:02:50]}  Bh3 {[%clk 0:02:23]} 14. Qxd8 {[%clk 0:02:38]}  Raxd8 {[%clk 0:02:21]} 15. Re1 {[%clk 0:02:26]}  Bg4 {[%clk 0:02:12]} 16. Kg2 {[%clk 0:02:20]}  Rfe8 {[%clk 0:02:08]} 17. Be3 {[%clk 0:02:17]}  b6 {[%clk 0:02:01]} 18. Rad1 {[%clk 0:02:01]}  Rxd1 {[%clk 0:01:57]} 19. Rxd1 {[%clk 0:02:02]}  Nxe4 {[%clk 0:01:12]} 20. Nxe4 {[%clk 0:02:02]}  Bf5 {[%clk 0:01:13]} 21. Nd6 {[%clk 0:00:40]}  Rxe3 {[%clk 0:01:11]} 22. Nxf5 {[%clk 0:00:40]}  gxf5 {[%clk 0:01:11]} 23. Rd8+ {[%clk 0:00:29]}  Bf8 {[%clk 0:01:10]} 24. Rd7 {[%clk 0:00:29]}  Re7 {[%clk 0:01:09]} 25. Rxe7 {[%clk 0:00:29]}  Bxe7 {[%clk 0:01:09]} 26. b3 {[%clk 0:00:25]}  Bh4 {[%clk 0:01:08]} 27. Bd5 {[%clk 0:00:25]}  Kg7 {[%clk 0:01:08]} 28. Kf3 {[%clk 0:00:26]}  Kf6 {[%clk 0:01:08]} 29. c4 {[%clk 0:00:27]}  Be1 {[%clk 0:01:08]} 30. h3 {[%clk 0:00:28]}  Kg6 {[%clk 0:01:07]} 31. a4 {[%clk 0:00:28]}  Bd2 {[%clk 0:01:06]} 32. Kg3 {[%clk 0:00:27]}  Kf6 {[%clk 0:01:06]} 33. Kf3 {[%clk 0:00:28]}  h6 {[%clk 0:01:06]} 34. Kg3 {[%clk 0:00:28]}  Be1+ {[%clk 0:01:07]} 35. Kf3 {[%clk 0:00:29]}  Bh4 {[%clk 0:01:07]} 36. Ke2 {[%clk 0:00:29]}  Ke7 {[%clk 0:01:08]} 37. Kf3 {[%clk 0:00:30]}  Bf6 {[%clk 0:01:08]} 38. Ke3 {[%clk 0:00:30]}  h5 {[%clk 0:01:07]} 39. Kf3 {[%clk 0:00:31]}  h4 {[%clk 0:01:08]} 40. Ke3 {[%clk 0:00:32]}  Bd4+ {[%clk 0:01:07]} 41. Ke2 {[%clk 0:00:32]}  a6 {[%clk 0:01:04]} 42. Bb7 {[%clk 0:00:32]}  a5 {[%clk 0:01:04]} 43. Bc8 {[%clk 0:00:32]}  Kf6 {[%clk 0:01:04]} 44. Kf3 {[%clk 0:00:33]}  Kg6 {[%clk 0:01:03]} 45. Bb7 {[%clk 0:00:34]}  Kf6 {[%clk 0:01:04]} 46. Bd5 {[%clk 0:00:35]}  Kg6 {[%clk 0:01:05]} 47. Bc6 {[%clk 0:00:35]}  Kf6 {[%clk 0:01:05]} 48. Bd5 {[%clk 0:00:36]}  Bc3 {[%clk 0:01:05]} 49. Bc6 {[%clk 0:00:36]}  Bd2 {[%clk 0:01:06]} 50. Bd5 {[%clk 0:00:37]}  Kg6 {[%clk 0:01:06]} 51. Bc6 {[%clk 0:00:38]}  Kf6 {[%clk 0:01:06]} 52. Bd5 {[%clk 0:00:39]}  Ke7 {[%clk 0:01:03]} 53. Bc6 {[%clk 0:00:39]}  Kf6 {[%clk 0:01:00]} 1/2-1/2


[Site "https://www.chess.com"]

[Event "Titled Tuesday Blitz January 11 2022"]
[White "Djordjevic, Vuk"]
[Black "Sarana, Alexey"]
[WhiteFideId "902098"]
[BlackFideId "24133795"]
[WhiteElo "2463"]
[BlackElo "2665"]
[Result "0-1"]
[Round "04"]
[TimeControl "180+1"]
[Date "2022.01.11"]
[WhiteClock "0:00:04"]
[BlackClock "0:00:05"]

1. d4 {[%clk 0:03:00]}  Nf6 {[%clk 0:02:59]} 2. Bg5 {[%clk 0:03:01]}  d5 {[%clk 0:02:59]} 3. Bxf6 {[%clk 0:03:00]}  gxf6 {[%clk 0:02:58]} 4. e3 {[%clk 0:03:01]}  e5 {[%clk 0:02:56]} 5. c4 {[%clk 0:02:41]}  exd4 {[%clk 0:01:56]} 6. Qxd4 {[%clk 0:02:38]}  Nc6 {[%clk 0:01:42]} 7. Qxd5 {[%clk 0:02:34]}  Qxd5 {[%clk 0:01:42]} 8. cxd5 {[%clk 0:02:34]}  Nb4 {[%clk 0:01:42]} 9. Na3 {[%clk 0:02:33]}  Nxd5 {[%clk 0:01:40]} 10. Nb5 {[%clk 0:02:26]}  c6 {[%clk 0:01:38]} 11. Nd4 {[%clk 0:02:26]}  Bb4+ {[%clk 0:01:38]} 12. Kd1 {[%clk 0:02:19]}  O-O {[%clk 0:01:38]} 13. Kc2 {[%clk 0:02:08]}  Rd8 {[%clk 0:01:37]} 14. a3 {[%clk 0:02:06]}  Be7 {[%clk 0:01:36]} 15. Bd3 {[%clk 0:02:06]}  c5 {[%clk 0:01:31]} 16. Nf5 {[%clk 0:01:59]}  Bf8 {[%clk 0:01:31]} 17. g4 {[%clk 0:01:57]}  Be6 {[%clk 0:01:31]} 18. Ne2 {[%clk 0:01:54]}  Rac8 {[%clk 0:01:31]} 19. Rhd1 {[%clk 0:01:40]}  a6 {[%clk 0:01:01]} 20. Be4 {[%clk 0:01:12]}  b5 {[%clk 0:01:00]} 21. Rd2 {[%clk 0:01:11]}  Nb6 {[%clk 0:00:58]} 22. Rad1 {[%clk 0:01:04]}  Rxd2+ {[%clk 0:00:59]} 23. Rxd2 {[%clk 0:01:05]}  Nc4 {[%clk 0:00:58]} 24. Rd1 {[%clk 0:01:04]}  b4 {[%clk 0:00:58]} 25. axb4 {[%clk 0:00:53]}  cxb4 {[%clk 0:00:57]} 26. Kb1 {[%clk 0:00:53]}  a5 {[%clk 0:00:53]} 27. b3 {[%clk 0:00:42]}  Ne5 {[%clk 0:00:44]} 28. Ned4 {[%clk 0:00:39]}  Rc3 {[%clk 0:00:38]} 29. Bc2 {[%clk 0:00:33]}  a4 {[%clk 0:00:27]} 30. bxa4 {[%clk 0:00:12]}  b3 {[%clk 0:00:27]} 31. Be4 {[%clk 0:00:09]}  Nc4 {[%clk 0:00:21]} 32. Nb5 {[%clk 0:00:07]}  Na3+ {[%clk 0:00:20]} 33. Nxa3 {[%clk 0:00:07]}  Bxa3 {[%clk 0:00:19]} 34. Nd4 {[%clk 0:00:07]}  b2 {[%clk 0:00:13]} 35. Bc2 {[%clk 0:00:07]}  Rc4 {[%clk 0:00:08]} 36. Nb5 {[%clk 0:00:07]}  Bc5 {[%clk 0:00:05]} 37. Bb3 {[%clk 0:00:05]}  Rxg4 {[%clk 0:00:05]} 38. Bxe6 {[%clk 0:00:06]}  fxe6 {[%clk 0:00:06]} 39. a5 {[%clk 0:00:06]}  Ra4 {[%clk 0:00:05]} 40. Kxb2 {[%clk 0:00:05]}  Rb4+ {[%clk 0:00:05]} 41. Kc3 {[%clk 0:00:05]}  Rxb5 {[%clk 0:00:06]} 42. a6 {[%clk 0:00:05]}  Ra5 {[%clk 0:00:06]} 43. Kc4 {[%clk 0:00:06]}  Kf7 {[%clk 0:00:03]} 44. Rd7+ {[%clk 0:00:06]}  Kg6 {[%clk 0:00:04]} 45. Rb7 {[%clk 0:00:05]}  Rxa6 {[%clk 0:00:03]} 46. Kxc5 {[%clk 0:00:05]}  Ra2 {[%clk 0:00:04]} 47. f3 {[%clk 0:00:05]}  Rf2 {[%clk 0:00:02]} 48. Kd4 {[%clk 0:00:06]}  Rxh2 {[%clk 0:00:02]} 49. f4 {[%clk 0:00:06]}  Kf5 {[%clk 0:00:02]} 50. Rb5+ {[%clk 0:00:05]}  Kg4 {[%clk 0:00:03]} 51. Rb7 {[%clk 0:00:05]}  Rd2+ {[%clk 0:00:03]} 52. Kc3 {[%clk 0:00:05]}  Rd6 {[%clk 0:00:03]} 53. Rf7 {[%clk 0:00:05]}  f5 {[%clk 0:00:03]} 54. Rxh7 {[%clk 0:00:05]}  Kf3 {[%clk 0:00:04]} 55. Rh3+ {[%clk 0:00:05]}  Ke4 {[%clk 0:00:04]} 56. Kc2 {[%clk 0:00:05]}  Rd3 {[%clk 0:00:04]} 57. Rh6 {[%clk 0:00:05]}  Rxe3 {[%clk 0:00:04]} 58. Rxe6+ {[%clk 0:00:05]}  Kxf4 {[%clk 0:00:05]} 59. Rf6 {[%clk 0:00:02]}  Re5 {[%clk 0:00:04]} 60. Kd3 {[%clk 0:00:01]}  Kf3 {[%clk 0:00:04]} 61. Kd4 {[%clk 0:00:02]}  Ra5 {[%clk 0:00:05]} 62. Rh6 {[%clk 0:00:01]}  f4 {[%clk 0:00:05]} 63. Rh1 {[%clk 0:00:02]}  Kg2 {[%clk 0:00:04]} 64. Rh4 {[%clk 0:00:02]}  f3 {[%clk 0:00:04]} 65. Ke3 {[%clk 0:00:02]}  Ra3+ {[%clk 0:00:04]} 66. Kd2 {[%clk 0:00:03]}  f2 {[%clk 0:00:05]} 67. Rg4+ {[%clk 0:00:03]}  Rg3 {[%clk 0:00:04]} 68. Rxg3+ {[%clk 0:00:04]}  Kxg3 {[%clk 0:00:05]} 0-1


[Site "https://www.chess.com"]

[Event "Titled Tuesday Blitz January 11 2022"]
[White "Gareyev, Timur"]
[Black "Andreikin, Dmitry"]
[WhiteFideId "14200937"]
[BlackFideId "4158814"]
[WhiteElo "2586"]
[BlackElo "2736"]
[Result "1/2-1/2"]
[Round "04"]
[TimeControl "180+1"]
[Date "2022.01.11"]
[WhiteClock "0:01:18"]
[BlackClock "0:01:56"]

1. d4 {[%clk 0:03:00]}  Nf6 {[%clk 0:02:57]} 2. c4 {[%clk 0:03:01]}  e6 {[%clk 0:02:57]} 3. Nc3 {[%clk 0:03:00]}  d5 {[%clk 0:02:55]} 4. cxd5 {[%clk 0:02:58]}  exd5 {[%clk 0:02:55]} 5. Bg5 {[%clk 0:02:59]}  c6 {[%clk 0:02:54]} 6. e3 {[%clk 0:02:59]}  Bf5 {[%clk 0:02:54]} 7. Qf3 {[%clk 0:02:58]}  Bg6 {[%clk 0:02:54]} 8. Bxf6 {[%clk 0:02:59]}  Qxf6 {[%clk 0:02:55]} 9. Qxf6 {[%clk 0:02:58]}  gxf6 {[%clk 0:02:56]} 10. Nge2 {[%clk 0:02:58]}  Nd7 {[%clk 0:02:56]} 11. Nf4 {[%clk 0:02:57]}  Bd6 {[%clk 0:02:54]} 12. h4 {[%clk 0:02:49]}  h6 {[%clk 0:02:46]} 13. f3 {[%clk 0:02:45]}  Nb6 {[%clk 0:02:44]} 14. Kf2 {[%clk 0:02:43]}  Kd7 {[%clk 0:02:42]} 15. Rd1 {[%clk 0:02:34]}  Rae8 {[%clk 0:02:41]} 16. g3 {[%clk 0:02:32]}  Rhg8 {[%clk 0:02:39]} 17. b3 {[%clk 0:02:26]}  Bb4 {[%clk 0:02:27]} 18. Bh3+ {[%clk 0:02:15]}  Kd6 {[%clk 0:02:23]} 19. Nce2 {[%clk 0:02:07]}  Bc2 {[%clk 0:02:21]} 20. Rc1 {[%clk 0:02:01]}  Bh7 {[%clk 0:02:21]} 21. Rhd1 {[%clk 0:01:39]}  Ba3 {[%clk 0:02:18]} 22. Rc3 {[%clk 0:01:35]}  Bb4 {[%clk 0:02:16]} 23. Rcc1 {[%clk 0:01:31]}  Ba3 {[%clk 0:02:09]} 24. Rc3 {[%clk 0:01:26]}  Bb4 {[%clk 0:01:56]} 25. Rcc1 {[%clk 0:01:18]} 1/2-1/2


[Site "https://www.chess.com"]

[Event "Titled Tuesday Blitz January 11 2022"]
[White "Grunberg, Mihai-Lucian"]
[Black "Leitao, Rafael"]
[WhiteFideId "1204149"]
[BlackFideId "2101246"]
[WhiteElo "2364"]
[BlackElo "2609"]
[Result "0-1"]
[Round "04"]
[TimeControl "180+1"]
[Date "2022.01.11"]
[WhiteClock "0:00:04"]
[BlackClock "0:00:15"]

1. Nf3 {[%clk 0:03:00]}  Nf6 {[%clk 0:02:57]} 2. c4 {[%clk 0:03:00]}  e6 {[%clk 0:02:54]} 3. g3 {[%clk 0:03:01]}  d5 {[%clk 0:02:54]} 4. Bg2 {[%clk 0:03:02]}  Be7 {[%clk 0:02:54]} 5. O-O {[%clk 0:03:02]}  O-O {[%clk 0:02:53]} 6. d4 {[%clk 0:03:03]}  dxc4 {[%clk 0:02:49]} 7. Qc2 {[%clk 0:03:02]}  b5 {[%clk 0:02:44]} 8. a4 {[%clk 0:03:01]}  a6 {[%clk 0:02:44]} 9. axb5 {[%clk 0:02:59]}  Bb7 {[%clk 0:02:44]} 10. bxa6 {[%clk 0:02:57]}  Nxa6 {[%clk 0:02:43]} 11. Qxc4 {[%clk 0:02:43]}  Bd5 {[%clk 0:02:43]} 12. Qd3 {[%clk 0:02:31]}  Nb4 {[%clk 0:02:40]} 13. Rxa8 {[%clk 0:02:30]}  Qxa8 {[%clk 0:02:40]} 14. Qd1 {[%clk 0:02:24]}  c5 {[%clk 0:02:19]} 15. Nc3 {[%clk 0:02:22]}  Bb7 {[%clk 0:02:20]} 16. Bg5 {[%clk 0:02:00]}  Rd8 {[%clk 0:02:12]} 17. e3 {[%clk 0:01:42]}  cxd4 {[%clk 0:02:04]} 18. exd4 {[%clk 0:01:41]}  h6 {[%clk 0:02:04]} 19. Be3 {[%clk 0:01:35]}  Nfd5 {[%clk 0:01:56]} 20. Qb3 {[%clk 0:01:23]}  Rb8 {[%clk 0:01:25]} 21. Ne1 {[%clk 0:01:06]}  Nxe3 {[%clk 0:01:18]} 22. fxe3 {[%clk 0:01:02]}  Bg5 {[%clk 0:01:13]} 23. Nd1 {[%clk 0:00:51]}  Nd5 {[%clk 0:01:08]} 24. e4 {[%clk 0:00:40]}  Nf6 {[%clk 0:00:55]} 25. Qa3 {[%clk 0:00:19]}  Nxe4 {[%clk 0:00:51]} 26. Qxa8 {[%clk 0:00:18]}  Bxa8 {[%clk 0:00:49]} 27. Nd3 {[%clk 0:00:14]}  Rd8 {[%clk 0:00:42]} 28. Nc5 {[%clk 0:00:13]}  Rxd4 {[%clk 0:00:38]} 29. Nc3 {[%clk 0:00:13]}  Be3+ {[%clk 0:00:35]} 30. Kh1 {[%clk 0:00:12]}  Nxc5 {[%clk 0:00:24]} 31. Bxa8 {[%clk 0:00:12]}  Nd3 {[%clk 0:00:24]} 32. Rf3 {[%clk 0:00:11]}  Bg5 {[%clk 0:00:24]} 33. b3 {[%clk 0:00:07]}  Ne5 {[%clk 0:00:23]} 34. Rf2 {[%clk 0:00:05]}  Rb4 {[%clk 0:00:22]} 35. Rb2 {[%clk 0:00:03]}  Bf6 {[%clk 0:00:23]} 36. Rb1 {[%clk 0:00:02]}  Nd3 {[%clk 0:00:23]} 37. Ne4 {[%clk 0:00:02]}  Be7 {[%clk 0:00:22]} 38. Nd2 {[%clk 0:00:01]}  Nc5 {[%clk 0:00:19]} 39. Kg2 {[%clk 0:00:02]}  f5 {[%clk 0:00:19]} 40. Bf3 {[%clk 0:00:03]}  Kf7 {[%clk 0:00:19]} 41. Nc4 {[%clk 0:00:03]}  Rxb3 {[%clk 0:00:17]} 42. Ne5+ {[%clk 0:00:03]}  Kg8 {[%clk 0:00:15]} 43. Rxb3 {[%clk 0:00:03]}  Nxb3 {[%clk 0:00:16]} 44. Nc6 {[%clk 0:00:03]}  Bd6 {[%clk 0:00:15]} 45. Bd1 {[%clk 0:00:04]}  Nc5 {[%clk 0:00:15]} 46. Nd4 {[%clk 0:00:04]}  Kf7 {[%clk 0:00:15]} 47. Nb3 {[%clk 0:00:05]}  Nd7 {[%clk 0:00:14]} 48. Nd4 {[%clk 0:00:05]}  Bc5 {[%clk 0:00:15]} 49. Nb3 {[%clk 0:00:05]}  g6 {[%clk 0:00:14]} 50. h4 {[%clk 0:00:05]}  Bb6 {[%clk 0:00:14]} 51. Be2 {[%clk 0:00:05]}  Kf6 {[%clk 0:00:14]} 52. Bb5 {[%clk 0:00:06]}  Ne5 {[%clk 0:00:14]} 53. Nd2 {[%clk 0:00:05]}  Ng4 {[%clk 0:00:15]} 54. Bc4 {[%clk 0:00:05]}  e5 {[%clk 0:00:15]} 55. Nb3 {[%clk 0:00:04]}  Ne3+ {[%clk 0:00:15]} 0-1


[Site "https://www.chess.com"]